fUSD/lending_fUSD_20250407
["ID","MTS","AMOUNT","RATE_DAILY","PERIOD"]
[357314452,1744004609555,-2000.0,0.000575,120]
[357314453,1744004609594,-151.0,0.000575,120]
[357314454,1744004609632,-151.0,0.00057534,120]
[357314455,1744004609673,-151.0,0.00058,120]
[357314456,1744004609712,-151.0,0.00058,120]
[357314457,1744004609752,-151.0,0.000585,120]
[357314458,1744004609796,-266.83,0.00059499,30]
[357314459,1744004609835,-464101.20103225,0.000595,120]
[357314460,1744004609873,-152.0,0.00059666,30]
[357314461,1744004609923,-962.0,0.00059869,30]
[357314462,1744004609963,-159.91634504,0.0005989,120]
[357314463,1744004610002,-1748.20567978,0.00059893,120]
[357314464,1744004610047,-460.07095359,0.00059999,120]
[357314465,1744004610087,-500.0,0.00059999,31]
[357314466,1744004610127,-500.0,0.00059999,31]
[357314467,1744004610168,-500.0,0.00059999,31]
[357314468,1744004610211,-500.0,0.00059999,120]
[357314469,1744004610255,-500.0,0.00059999,31]
[357314470,1744004610297,-500.0,0.00059999,31]
[357314471,1744004610340,-500.0,0.00059999,120]
[357314472,1744004610383,-500.0,0.00059999,31]
[357314473,1744004610428,-328.14928243,0.00059999,31]
[357314474,1744004610476,-500.0,0.00059999,120]
[357314475,1744004610522,-500.0,0.00059999,31]
[357314476,1744004610570,-500.0,0.00059999,120]
[357314477,1744004610616,-500.0,0.00059999,31]
[357314478,1744004610664,-500.0,0.00059999,120]
[357314479,1744004610708,-500.0,0.00059999,31]
[357314480,1744004610755,-500.0,0.00059999,120]
[357314481,1744004610802,-500.0,0.00059999,120]
[357314482,1744004610848,-500.0,0.00059999,120]
[357314483,1744004610891,-500.0,0.00059999,120]
[357314484,1744004610933,-500.0,0.00059999,120]
[357314485,1744004610976,-500.0,0.00059999,120]
[357314486,1744004611021,-637.4374953,0.00059999,120]
[357314487,1744004611065,-500.0,0.00059999,120]
[357314488,1744004611108,-500.0,0.00059999,120]
[357314489,1744004611150,-500.0,0.00059999,120]
[357314490,1744004611194,-500.0,0.00059999,120]
[357314491,1744004611235,-500.0,0.00059999,120]
[357314492,1744004611276,-500.0,0.00059999,120]
[357314493,1744004611317,-500.0,0.00059999,120]
[357314494,1744004611359,-500.0,0.00059999,120]
[357314495,1744004611401,-500.0,0.00059999,120]
[357314496,1744004611442,-500.0,0.00059999,120]
[357314497,1744004611485,-161.23825729,0.00059999,120]
[357314498,1744004611526,-500.0,0.00059999,120]
[357314499,1744004611567,-479.5807835,0.00059999,120]
[357314500,1744004611609,-500.0,0.00059999,120]
[357314501,1744004611652,-513.58461463,0.00059999,120]
[357314502,1744004611693,-500.0,0.00059999,120]
[357314503,1744004611736,-500.0,0.00059999,120]
[357314504,1744004611781,-500.0,0.00059999,120]
[357314505,1744004611823,-500.0,0.00059999,120]
[357314506,1744004611861,-500.0,0.00059999,120]
[357314507,1744004611902,-500.0,0.00059999,120]
[357314508,1744004611940,-500.0,0.00059999,120]
[357314509,1744004611980,-500.0,0.00059999,120]
[357314510,1744004612022,-500.0,0.00059999,120]
[357314511,1744004612063,-500.0,0.00059999,120]
[357314512,1744004612103,-500.0,0.00059999,120]
[357314513,1744004612150,-500.0,0.00059999,120]
[357314514,1744004612197,-500.0,0.00059999,120]
[357314515,1744004612241,-500.0,0.00059999,120]
[357314516,1744004612286,-500.0,0.00059999,120]
[357314517,1744004612330,-500.0,0.00059999,120]
[357314518,1744004612375,-500.0,0.00059999,120]
[357314519,1744004612645,-500.0,0.00059999,120]
[357314520,1744004612705,-500.0,0.00059999,120]
[357314521,1744004612748,-500.0,0.00059999,120]
[357314522,1744004612792,-500.0,0.00059999,120]
[357314523,1744004612835,-500.0,0.00059999,120]
[357314524,1744004612876,-500.0,0.00059999,120]
[357314525,1744004612918,-500.0,0.00059999,120]
[357314526,1744004612959,-500.0,0.00059999,120]
[357314527,1744004613003,-500.0,0.00059999,120]
[357314528,1744004613050,-500.0,0.00059999,120]
[357314529,1744004613093,-500.0,0.00059999,120]
[357314530,1744004613138,-500.0,0.00059999,120]
[357314531,1744004613184,-500.0,0.00059999,120]
[357314532,1744004613230,-500.0,0.00059999,120]
[357314533,1744004613280,-502.33844025,0.00059999,120]
[357314534,1744004613327,-500.0,0.00059999,120]
[357314535,1744004613375,-500.0,0.00059999,120]
[357314536,1744004613422,-500.0,0.00059999,120]
[357314537,1744004613472,-500.0,0.00059999,120]
[357314538,1744004613519,-500.0,0.00059999,120]
[357314539,1744004613567,-500.0,0.00059999,120]
[357314540,1744004613613,-500.0,0.00059999,120]
[357314541,1744004613659,-500.0,0.00059999,120]
[357314542,1744004613706,-500.0,0.00059999,120]
[357314543,1744004613755,-500.0,0.00059999,120]
[357314544,1744004613801,-500.0,0.00059999,120]
[357314545,1744004613845,-500.0,0.00059999,120]
[357314546,1744004613890,-500.0,0.00059999,120]
[357314547,1744004613937,-500.0,0.00059999,120]
[357314548,1744004613984,-500.0,0.00059999,120]
[357314549,1744004614031,-500.0,0.00059999,120]
[357314550,1744004614079,-500.0,0.00059999,120]
[357314551,1744004614128,-500.0,0.00059999,120]
[357314552,1744004614178,-500.0,0.00059999,120]
[357314553,1744004614230,-500.0,0.00059999,120]
[357314554,1744004614279,-500.0,0.00059999,120]
[357314555,1744004614330,-500.0,0.00059999,120]
[357314556,1744004614376,-500.0,0.00059999,120]
[357314557,1744004614424,-500.0,0.00059999,120]
[357314558,1744004614473,-500.0,0.00059999,120]
[357314559,1744004614520,-500.0,0.00059999,120]
[357314560,1744004614567,-510.61856304,0.00059999,120]
[357314561,1744004614613,-500.0,0.00059999,120]
[357314562,1744004614659,-500.0,0.00059999,120]
[357314563,1744004614705,-500.0,0.00059999,120]
[357314564,1744004614749,-500.0,0.00059999,120]
[357314565,1744004614792,-500.0,0.00059999,120]
[357314566,1744004614835,-500.0,0.00059999,120]
[357314567,1744004614878,-500.0,0.00059999,120]
[357314568,1744004614921,-500.0,0.00059999,120]
[357314569,1744004614967,-500.0,0.00059999,120]
[357314570,1744004615018,-500.0,0.00059999,120]
[357314571,1744004615063,-322.24824571,0.00059999,120]
[357314572,1744004615106,-500.0,0.00059999,120]
[357314573,1744004615150,-500.0,0.00059999,120]
[357314574,1744004615193,-500.0,0.00059999,120]
[357314575,1744004615235,-500.0,0.00059999,120]
[357314576,1744004615278,-500.0,0.00059999,120]
[357314577,1744004615319,-500.0,0.00059999,120]
[357314578,1744004615365,-500.0,0.00059999,120]
[357314579,1744004615413,-500.0,0.00059999,120]
[357314580,1744004615461,-200.0,0.00059999,120]
[357314581,1744004615507,-1000.0,0.00059999,120]
[357314582,1744004615552,-50000.0,0.0006,60]
[357314583,1744004615595,-4879.46,0.0006,120]
[357314584,1744004615641,-1000000.0,0.0006,120]
[357314585,1744004615683,-703.17649608,0.0006,30]
[357314586,1744004615727,-200.0,0.0006,120]
[357314587,1744004615769,-1000000.0,0.0006,120]
[357314588,1744004615810,-156.74961995,0.0006,120]
[357314589,1744004615850,-302.68804093,0.0006,120]
[357314590,1744004615889,-311.31239252,0.0006,120]
[357314591,1744004615928,-1057.40667418,0.0006,120]
[357314592,1744004615966,-150.0,0.0006,30]
[357314593,1744004616007,-769.14,0.0006,120]
[357314594,1744004616046,-4520.95433649,0.0006,30]
[357314595,1744004616085,-1634.0,0.0006,120]
[357314596,1744004616124,-243.95926411,0.0006,120]
[357314597,1744004616165,-1660.01951543,0.0006,120]
[357314598,1744004616206,-1749.66917947,0.0006,120]
[357314599,1744004616249,-1136.32947791,0.0006,30]
[357314600,1744004616292,-23778.88608971,0.0006,120]
[357314601,1744004616334,-250.0,0.0006,61]
[357314602,1744004616375,-150.0,0.0006,30]
[357314603,1744004616417,-150.0,0.0006,120]
[357314604,1744004616457,-10176.66362993,0.0006,120]
[357314605,1744004616497,-500.0,0.0006,120]
[357314606,1744004616537,-500.0,0.0006,120]
[357314607,1744004616576,-1340.6971251,0.0006,99]
[357314608,1744004616615,-707.0,0.0006,120]
[357314609,1744004616654,-11249.32,0.0006,60]
[357314610,1744004616697,-500.0,0.00060273,120]
[357314611,1744004616738,-2000.0,0.00060273,120]
[357314612,1744004616777,-2000.0,0.00060273,120]
[357314613,1744004616819,-700.0,0.00060274,32]
[357314614,1744004617045,-210.0,0.0006036,30]
[357314615,1744004617088,-152.0,0.00060379,31]
[357314616,1744004617129,-962.0,0.00060467,30]
[357314617,1744004617173,-294099.53454017,0.000605,120]
[357314618,1744004733347,-521.97762037,0.00036887,41]
[357314619,1744004733440,-620.7620506,0.00039999,31]
[357314620,1744004733521,-159.0,0.00043151,90]
[357314621,1744004733603,-210.0,0.0004857,30]
[357314622,1744004733682,-500.0,0.00049315,120]
[357314623,1744004733755,-532.63,0.00049315,120]
[357314624,1744004733827,-712.97,0.00049315,120]
[357314625,1744004733911,-500.0,0.00049315,120]
[357314626,1744004733980,-552.93,0.00049315,120]
[357314627,1744004734054,-529.19,0.00049315,120]
[357314628,1744004734134,-500.0,0.00049315,120]
[357314629,1744004734215,-500.0,0.00049315,120]
[357314630,1744004734291,-500.0,0.00049315,120]
[357314631,1744004734366,-500.0,0.00049315,120]
[357314632,1744004734442,-1104.72,0.00049315,120]
[357314633,1744004734520,-500.0,0.00049315,120]
[357314634,1744004734597,-500.0,0.00049315,120]
[357314635,1744004734672,-500.0,0.00049315,120]
[357314636,1744004734745,-500.0,0.00049315,120]
[357314637,1744004734817,-500.0,0.00049315,120]
[357314638,1744004734893,-500.0,0.00049315,120]
[357314639,1744004734966,-500.0,0.00049315,120]
[357314640,1744004735037,-500.0,0.00049315,120]
[357314641,1744004735109,-500.0,0.00049315,120]
[357314642,1744004735182,-500.0,0.00049315,120]
[357314643,1744004735255,-450.58096513,0.00049315,120]
[357314644,1744004735328,-500.0,0.00049315,120]
[357314645,1744004735404,-500.0,0.00049315,120]
[357314646,1744004735483,-500.0,0.00049315,120]
[357314647,1744004735557,-549.39,0.00049315,120]
[357314648,1744004735640,-500.0,0.00049315,120]
[357314649,1744004735723,-500.0,0.00049315,120]
[357314650,1744004735804,-500.0,0.00049315,120]
[357314651,1744004735892,-500.0,0.00049315,120]
[357314652,1744004736199,-711.76,0.00049315,120]
[357314653,1744004736276,-500.0,0.00049315,120]
[357314654,1744004736351,-500.0,0.00049315,120]
[357314655,1744004736430,-279.20035538,0.00049315,120]
[357314656,1744004736505,-500.0,0.00049315,120]
[357314657,1744004736576,-500.0,0.00049315,120]
[357314658,1744004736651,-500.0,0.00049315,120]
[357314659,1744004736721,-500.0,0.00049315,120]
[357314660,1744004736792,-500.0,0.00049315,120]
[357314661,1744004736865,-500.0,0.00049315,120]
[357314662,1744004736942,-500.0,0.00049315,120]
[357314663,1744004737022,-500.0,0.00049589,120]
[357314664,1744004737097,-532.63,0.00049589,120]
[357314665,1744004737175,-712.97,0.00049589,120]
[357314666,1744004737250,-552.93,0.00049589,120]
[357314667,1744004737324,-529.19,0.00049589,120]
[357314668,1744004737407,-500.0,0.00049589,120]
[357314669,1744004737487,-500.0,0.00049589,120]
[357314670,1744004737557,-322.26271363,0.00049589,120]
[357314671,1744004737624,-472.76235373,0.00049589,120]
[357314672,1744004737694,-1104.72,0.00049589,120]
[357314673,1744004737760,-500.0,0.00049589,120]
[357314674,1744004737827,-500.0,0.00049589,120]
[357314675,1744004737898,-347.11539817,0.00049589,120]
[357314676,1744004737973,-500.0,0.00049589,120]
[357314677,1744004738045,-500.0,0.00049589,120]
[357314678,1744004738117,-500.0,0.00049589,120]
[357314679,1744004738193,-500.0,0.00049589,120]
[357314680,1744004738269,-500.0,0.00049589,120]
[357314681,1744004738348,-500.0,0.00049589,120]
[357314682,1744004738428,-500.0,0.00049589,120]
[357314683,1744004738505,-500.0,0.00049589,120]
[357314684,1744004738599,-500.0,0.00049589,120]
[357314685,1744004738684,-500.0,0.00049589,120]
[357314686,1744004738764,-549.39,0.00049589,120]
[357314687,1744004738843,-500.0,0.00049589,120]
[357314688,1744004738919,-500.0,0.00049589,120]
[357314689,1744004738993,-500.0,0.00049589,120]
[357314690,1744004739069,-500.0,0.00049589,120]
[357314691,1744004739143,-711.76,0.00049589,120]
[357314692,1744004739218,-500.0,0.00049589,120]
[357314693,1744004739293,-500.0,0.00049589,120]
[357314694,1744004739369,-500.0,0.00049589,120]
[357314695,1744004739445,-602.12725873,0.00049589,120]
[357314696,1744004739521,-500.0,0.00049589,120]
[357314697,1744004739591,-500.0,0.00049589,120]
[357314698,1744004739661,-215.63079137,0.00049589,120]
[357314699,1744004739734,-311.04015678,0.00049589,120]
[357314700,1744004739807,-500.0,0.00049589,120]
[357314701,1744004739876,-272.97,0.00049636,30]
[357314702,1744004739945,-210.0,0.0004982,30]
[357314703,1744004740014,-500.0,0.00049863,120]
[357314704,1744004740084,-532.63,0.00049863,120]
[357314705,1744004740156,-712.97,0.00049863,120]
[357314706,1744004740229,-552.93,0.00049863,120]
[357314707,1744004740303,-529.19,0.00049863,120]
[357314708,1744004740379,-500.0,0.00049863,120]
[357314709,1744004740458,-500.0,0.00049863,120]
[357314710,1744004740532,-1104.72,0.00049863,120]
[357314711,1744004740605,-500.0,0.00049863,120]
[357314712,1744004740678,-500.0,0.00049863,120]
[357314713,1744004740751,-500.0,0.00049863,120]
[357314714,1744004740826,-500.0,0.00049863,120]
[357314715,1744004740898,-500.0,0.00049863,120]
[357314716,1744004740969,-500.0,0.00049863,120]
[357314717,1744004741040,-500.0,0.00049863,120]
[357314718,1744004741108,-500.0,0.00049863,120]
[357314719,1744004741176,-500.0,0.00049863,120]
[357314720,1744004741246,-500.0,0.00049863,120]
[357314721,1744004741317,-500.0,0.00049863,120]
[357314722,1744004741389,-500.0,0.00049863,120]
[357314723,1744004741461,-549.39,0.00049863,120]
[357314724,1744004741535,-294.24780493,0.00049863,120]
[357314725,1744004741603,-500.0,0.00049863,120]
[357314726,1744004741674,-500.0,0.00049863,120]
[357314727,1744004741742,-500.0,0.00049863,120]
[357314728,1744004741811,-711.76,0.00049863,120]
[357314729,1744004741881,-500.0,0.00049863,120]
[357314730,1744004741949,-500.0,0.00049863,120]
[357314731,1744004742017,-500.0,0.00049863,120]
[357314732,1744004742087,-500.0,0.00049863,120]
[357314733,1744004742159,-500.0,0.00049863,120]
[357314734,1744004742229,-500.0,0.00049863,120]
[357314735,1744004742302,-500.0,0.00050136,120]
[357314736,1744004742373,-532.63,0.00050136,120]
[357314737,1744004742449,-712.97,0.00050136,120]
[357314738,1744004742521,-552.93,0.00050136,120]
[357314739,1744004742595,-529.19,0.00050136,120]
[357314740,1744004742671,-500.0,0.00050136,120]
[357314741,1744004742745,-500.0,0.00050136,120]
[357314742,1744004742818,-1104.72,0.00050136,120]
[357314743,1744004742889,-500.0,0.00050136,120]
[357314744,1744004742959,-500.0,0.00050136,120]
[357314745,1744004743025,-500.0,0.00050136,120]
[357314746,1744004743096,-452.11990481,0.00050136,120]
[357314747,1744004743170,-500.0,0.00050136,120]
[357314748,1744004743241,-238.44030695,0.00050136,120]
[357314749,1744004743321,-500.0,0.00050136,120]
[357314750,1744004743391,-500.0,0.00050136,120]
[357314751,1744004743464,-500.0,0.00050136,120]
[357314752,1744004743536,-500.0,0.00050136,120]
[357314753,1744004743609,-500.0,0.00050136,120]
[357314754,1744004743685,-543.85409889,0.00050136,120]
[357314755,1744004743757,-549.39,0.00050136,120]
[357314756,1744004743836,-500.0,0.00050136,120]
[357314757,1744004743911,-500.0,0.00050136,120]
[357314758,1744004743981,-500.0,0.00050136,120]
[357314759,1744004744049,-711.76,0.00050136,120]
[357314760,1744004744119,-500.0,0.00050136,120]
[357314761,1744004744190,-500.0,0.00050136,120]
[357314762,1744004744261,-230.80670671,0.00050136,120]
[357314763,1744004744333,-500.0,0.00050136,120]
[357314764,1744004744407,-500.0,0.00050136,120]
[357314765,1744004744482,-500.0,0.0005041,120]
[357314766,1744004744554,-532.63,0.0005041,120]
[357314767,1744004744626,-712.97,0.0005041,120]
[357314768,1744004744701,-552.93,0.0005041,120]
[357314769,1744004744787,-529.19,0.0005041,120]
[357314770,1744004744875,-500.0,0.0005041,120]
[357314771,1744004744959,-500.0,0.0005041,120]
[357314772,1744004745037,-1104.72,0.0005041,120]
[357314773,1744004745116,-500.0,0.0005041,120]
[357314774,1744004745203,-500.0,0.0005041,120]
[357314775,1744004745284,-500.0,0.0005041,120]
[357314776,1744004745362,-500.0,0.0005041,120]
[357314777,1744004745444,-500.0,0.0005041,120]
[357314778,1744004745525,-500.0,0.0005041,120]
[357314779,1744004745607,-500.0,0.0005041,120]
[357314780,1744004745684,-500.0,0.0005041,120]
[357314781,1744004745770,-500.0,0.0005041,120]
[357314782,1744004745850,-549.39,0.0005041,120]
[357314783,1744004745933,-443.86458693,0.0005041,120]
[357314784,1744004746019,-500.0,0.0005041,120]
[357314785,1744004746103,-500.0,0.0005041,120]
[357314786,1744004746181,-711.76,0.0005041,120]
[357314787,1744004746258,-500.0,0.0005041,120]
[357314788,1744004746335,-500.0,0.0005041,120]
[357314789,1744004746426,-500.0,0.0005041,120]
[357314790,1744004746503,-500.0,0.0005041,120]
[357314791,1744004746579,-500.0,0.00050684,120]
[357314792,1744004746662,-532.63,0.00050684,120]
[357314793,1744004746740,-712.97,0.00050684,120]
[357314794,1744004746816,-552.93,0.00050684,120]
[357314795,1744004746901,-529.19,0.00050684,120]
[357314796,1744004746979,-500.0,0.00050684,120]
[357314797,1744004747058,-500.0,0.00050684,120]
[357314798,1744004747136,-1104.72,0.00050684,120]
[357314799,1744004747215,-500.0,0.00050684,120]
[357314800,1744004747297,-500.0,0.00050684,120]
[357314801,1744004747382,-500.0,0.00050684,120]
[357314802,1744004747467,-500.0,0.00050684,120]
[357314803,1744004747544,-500.0,0.00050684,120]
[357314804,1744004747621,-500.0,0.00050684,120]
[357314805,1744004747703,-500.0,0.00050684,120]
[357314806,1744004747780,-500.0,0.00050684,120]
[357314807,1744004747856,-500.0,0.00050684,120]
[357314808,1744004747939,-549.39,0.00050684,120]
[357314809,1744004748016,-500.0,0.00050684,120]
[357314810,1744004748095,-500.0,0.00050684,120]
[357314811,1744004748193,-711.76,0.00050684,120]
[357314812,1744004748275,-500.0,0.00050684,120]
[357314813,1744004748358,-500.0,0.00050684,120]
[357314814,1744004748441,-500.0,0.00050684,120]
[357314815,1744004748522,-500.0,0.00050684,120]
[357314816,1744004748605,-500.0,0.00050958,120]
[357314817,1744004748688,-532.63,0.00050958,120]
[357314818,1744004748767,-712.97,0.00050958,120]
[357314819,1744004748844,-552.93,0.00050958,120]
[357314820,1744004748921,-529.19,0.00050958,120]
[357314821,1744004748999,-500.0,0.00050958,120]
[357314822,1744004749074,-477.41251415,0.00050958,120]
[357314823,1744004749150,-1104.72,0.00050958,120]
[357314824,1744004749230,-500.0,0.00050958,120]
[357314825,1744004749306,-500.0,0.00050958,120]
[357314826,1744004749383,-246.70813229,0.00050958,120]
[357314827,1744004749463,-500.0,0.00050958,120]
[357314828,1744004749550,-500.0,0.00050958,120]
[357314829,1744004749631,-500.0,0.00050958,120]
[357314830,1744004749712,-500.0,0.00050958,120]
[357314831,1744004749791,-500.0,0.00050958,120]
[357314832,1744004749872,-500.0,0.00050958,120]
[357314833,1744004749951,-549.39,0.00050958,120]
[357314834,1744004750029,-500.0,0.00050958,120]
[357314835,1744004750103,-500.0,0.00050958,120]
[357314836,1744004750177,-711.76,0.00050958,120]
[357314837,1744004750254,-635.80801079,0.00050958,120]
[357314838,1744004750332,-500.0,0.00050958,120]
[357314839,1744004750410,-500.0,0.00050958,120]
[357314840,1744004750492,-500.0,0.00050958,120]
[357314841,1744004750569,-210.0,0.0005106,30]
[357314842,1744004750643,-500.0,0.00051232,120]
[357314843,1744004750718,-532.63,0.00051232,120]
[357314844,1744004750797,-712.97,0.00051232,120]
[357314845,1744004750876,-552.93,0.00051232,120]
[357314846,1744004750951,-529.19,0.00051232,120]
[357314847,1744004751027,-500.0,0.00051232,120]
[357314848,1744004751102,-1104.72,0.00051232,120]
[357314849,1744004751574,-500.0,0.00051232,120]
[357314850,1744004751652,-500.0,0.00051232,120]
[357314851,1744004751733,-500.0,0.00051232,120]
[357314852,1744004751812,-500.0,0.00051232,120]
[357314853,1744004751892,-500.0,0.00051232,120]
[357314854,1744004751967,-500.0,0.00051232,120]
[357314855,1744004752045,-500.0,0.00051232,120]
[357314856,1744004752125,-500.0,0.00051232,120]
[357314857,1744004752203,-549.39,0.00051232,120]
[357314858,1744004752283,-500.0,0.00051232,120]
[357314859,1744004752369,-500.0,0.00051232,120]
[357314860,1744004752454,-711.76,0.00051232,120]
[357314861,1744004752535,-500.0,0.00051232,120]
[357314862,1744004752610,-500.0,0.00051232,120]
[357314863,1744004752685,-500.0,0.00051232,120]
[357314864,1744004752760,-500.0,0.00051506,120]
[357314865,1744004752833,-532.63,0.00051506,120]
[357314866,1744004752910,-712.97,0.00051506,120]
[357314867,1744004752987,-552.93,0.00051506,120]
[357314868,1744004753061,-529.19,0.00051506,120]
[357314869,1744004753132,-500.0,0.00051506,120]
[357314870,1744004753204,-1104.72,0.00051506,120]
[357314871,1744004753276,-500.0,0.00051506,120]
[357314872,1744004753350,-500.0,0.00051506,120]
[357314873,1744004753430,-500.0,0.00051506,120]
[357314874,1744004753507,-500.0,0.00051506,120]
[357314875,1744004753580,-500.0,0.00051506,120]
[357314876,1744004753654,-500.0,0.00051506,120]
[357314877,1744004753729,-500.0,0.00051506,120]
[357314878,1744004753802,-500.0,0.00051506,120]
[357314879,1744004753876,-549.39,0.00051506,120]
[357314880,1744004753947,-500.0,0.00051506,120]
[357314881,1744004754017,-500.0,0.00051506,120]
[357314882,1744004754087,-711.76,0.00051506,120]
[357314883,1744004754160,-286.62882514,0.00051506,120]
[357314884,1744004754231,-500.0,0.00051506,120]
[357314885,1744004754303,-500.0,0.00051506,120]
[357314886,1744004754379,-479.77860571,0.0005178,120]
[357314887,1744004754456,-500.0,0.0005178,120]
[357314888,1744004754533,-532.63,0.0005178,120]
[357314889,1744004754608,-712.97,0.0005178,120]
[357314890,1744004754681,-552.93,0.0005178,120]
[357314891,1744004754754,-529.19,0.0005178,120]
[357314892,1744004754825,-500.0,0.0005178,120]
[357314893,1744004754894,-1104.72,0.0005178,120]
[357314894,1744004754964,-500.0,0.0005178,120]
[357314895,1744004755039,-500.0,0.0005178,120]
[357314896,1744004755112,-500.0,0.0005178,120]
[357314897,1744004755186,-500.0,0.0005178,120]
[357314898,1744004755259,-500.0,0.0005178,120]
[357314899,1744004755330,-500.0,0.0005178,120]
[357314900,1744004755406,-500.0,0.0005178,120]
[357314901,1744004755485,-500.0,0.0005178,120]
[357314902,1744004755563,-549.39,0.0005178,120]
[357314903,1744004755643,-500.0,0.0005178,120]
[357314904,1744004755723,-500.0,0.0005178,120]
[357314905,1744004755803,-711.76,0.0005178,120]
[357314906,1744004755881,-500.0,0.0005178,120]
[357314907,1744004755954,-500.0,0.0005178,120]
[357314908,1744004756027,-617.19001318,0.00052054,120]
[357314909,1744004756101,-532.63,0.00052054,120]
[357314910,1744004756176,-712.97,0.00052054,120]
[357314911,1744004756251,-552.93,0.00052054,120]
[357314912,1744004756331,-529.19,0.00052054,120]
[357314913,1744004756412,-500.0,0.00052054,120]
[357314914,1744004756489,-1104.72,0.00052054,120]
[357314915,1744004756565,-500.0,0.00052054,120]
[357314916,1744004756641,-318.10732151,0.00052054,120]
[357314917,1744004756716,-625.52234146,0.00052054,120]
[357314918,1744004756810,-500.0,0.00052054,120]
[357314919,1744004756886,-500.0,0.00052054,120]
[357314920,1744004756961,-500.0,0.00052054,120]
[357314921,1744004757033,-500.0,0.00052054,120]
[357314922,1744004757106,-500.0,0.00052054,120]
[357314923,1744004757180,-549.39,0.00052054,120]
[357314924,1744004757257,-500.0,0.00052054,120]
[357314925,1744004757333,-500.0,0.00052054,120]
[357314926,1744004757415,-711.76,0.00052054,120]
[357314927,1744004757502,-500.0,0.00052054,120]
[357314928,1744004757579,-500.0,0.00052054,120]
[357314929,1744004757654,-210.0,0.0005231,30]
[357314930,1744004757726,-210.0,0.0005231,30]
[357314931,1744004757797,-532.63,0.00052328,120]
[357314932,1744004757867,-712.97,0.00052328,120]
[357314933,1744004757938,-552.93,0.00052328,120]
[357314934,1744004758010,-529.19,0.00052328,120]
[357314935,1744004758082,-500.0,0.00052328,120]
[357314936,1744004758154,-1104.72,0.00052328,120]
[357314937,1744004758227,-500.0,0.00052328,120]
[357314938,1744004758300,-556.23864336,0.00052328,120]
[357314939,1744004758374,-500.0,0.00052328,120]
[357314940,1744004758448,-536.27470813,0.00052328,120]
[357314941,1744004758521,-423.51895482,0.00052328,120]
[357314942,1744004758594,-500.0,0.00052328,120]
[357314943,1744004758666,-549.39,0.00052328,120]
[357314944,1744004758738,-500.0,0.00052328,120]
[357314945,1744004758808,-500.0,0.00052328,120]
[357314946,1744004758881,-711.76,0.00052328,120]
[357314947,1744004758952,-500.0,0.00052328,120]
[357314948,1744004759021,-500.0,0.00052328,120]
[357314949,1744004759092,-532.63,0.00052602,120]
[357314950,1744004759165,-712.97,0.00052602,120]
[357314951,1744004759236,-552.93,0.00052602,120]